[Event "January 9 Late 2024"]
[Site "https://www.chess.com"]
[Date "2024.01.09"]
[Round "5"]
[White "Mesa Cruz, Juan Carlos"]
[Black "Panico, Nick"]
[Result "1-0"]
[Board "190"]
[TimeControl "180+1"]
[WhiteFideId "6423400"]
[BlackFideId "2026724"]
[WhiteElo "2342"]
[BlackElo "2046"]
[WhiteTeam "DOM"]
[BlackTeam "USA"]
[WhiteClock "0:00:25"]
[BlackClock "0:00:05"]

1. e4 {[%clk 0:02:58]}  e6 {[%clk 0:02:59]} 2. Qe2 {[%clk 0:02:38]}  Be7 {[%clk 0:02:58]} 3. d3 {[%clk 0:02:37]}  d5 {[%clk 0:02:57]} 4. Nf3 {[%clk 0:02:38]}  Nf6 {[%clk 0:02:55]} 5. Nbd2 {[%clk 0:02:36]}  O-O {[%clk 0:02:52]} 6. g3 {[%clk 0:02:15]}  b6 {[%clk 0:02:52]} 7. e5 {[%clk 0:02:11]}  Nfd7 {[%clk 0:02:51]} 8. Bg2 {[%clk 0:02:12]}  c5 {[%clk 0:02:47]} 9. O-O {[%clk 0:01:52]}  Nc6 {[%clk 0:02:47]} 10. Re1 {[%clk 0:01:53]}  f6 {[%clk 0:02:28]} 11. exf6 {[%clk 0:01:52]}  Nxf6 {[%clk 0:02:28]} 12. Nf1 {[%clk 0:01:43]}  Bd6 {[%clk 0:02:04]} 13. c4 {[%clk 0:01:37]}  Re8 {[%clk 0:01:56]} 14. b3 {[%clk 0:01:33]}  Qc7 {[%clk 0:01:45]} 15. Ng5 {[%clk 0:01:25]}  h6 {[%clk 0:01:37]} 16. Nh3 {[%clk 0:01:24]}  Nd4 {[%clk 0:01:33]} 17. Qd1 {[%clk 0:01:24]}  Bb7 {[%clk 0:01:22]} 18. Nf4 {[%clk 0:01:19]}  Rad8 {[%clk 0:01:11]} 19. Nh5 {[%clk 0:01:18]}  Nxh5 {[%clk 0:01:00]} 20. Qxh5 {[%clk 0:01:19]}  Nc2 {[%clk 0:01:01]} 21. Bd2 {[%clk 0:01:02]}  Nxa1 {[%clk 0:01:01]} 22. Rxa1 {[%clk 0:01:03]}  d4 {[%clk 0:00:55]} 23. f3 {[%clk 0:00:54]}  Qf7 {[%clk 0:00:52]} 24. Qxf7+ {[%clk 0:00:48]}  Kxf7 {[%clk 0:00:52]} 25. g4 {[%clk 0:00:47]}  g5 {[%clk 0:00:47]} 26. Ng3 {[%clk 0:00:47]}  Bxg3 {[%clk 0:00:43]} 27. hxg3 {[%clk 0:00:48]}  e5 {[%clk 0:00:43]} 28. Kf2 {[%clk 0:00:48]}  Kg6 {[%clk 0:00:42]} 29. Ke2 {[%clk 0:00:48]}  Rf8 {[%clk 0:00:42]} 30. Rh1 {[%clk 0:00:48]}  Rf7 {[%clk 0:00:38]} 31. Rf1 {[%clk 0:00:46]}  a6 {[%clk 0:00:36]} 32. Rf2 {[%clk 0:00:42]}  b5 {[%clk 0:00:31]} 33. Ba5 {[%clk 0:00:38]}  Rdf8 {[%clk 0:00:30]} 34. Bb6 {[%clk 0:00:37]}  Rc8 {[%clk 0:00:30]} 35. Kd2 {[%clk 0:00:34]}  Rc6 {[%clk 0:00:29]} 36. Ba5 {[%clk 0:00:34]}  Rcf6 {[%clk 0:00:22]} 37. Ke2 {[%clk 0:00:33]}  Bc6 {[%clk 0:00:20]} 38. Bb6 {[%clk 0:00:31]}  bxc4 {[%clk 0:00:21]} 39. bxc4 {[%clk 0:00:30]}  Rb7 {[%clk 0:00:13]} 40. Bxc5 {[%clk 0:00:29]}  Rb2+ {[%clk 0:00:12]} 41. Ke1 {[%clk 0:00:29]}  Rxf2 {[%clk 0:00:12]} 42. Kxf2 {[%clk 0:00:29]}  Ba4 {[%clk 0:00:07]} 43. a3 {[%clk 0:00:26]}  Bc2 {[%clk 0:00:07]} 44. Ke2 {[%clk 0:00:25]}  Rc6 {[%clk 0:00:07]} 45. Bb4 {[%clk 0:00:24]}  h5 {[%clk 0:00:07]} 46. f4 {[%clk 0:00:21]}  Rb6 {[%clk 0:00:07]} 47. c5 {[%clk 0:00:17]}  Rb8 {[%clk 0:00:05]} 48. Be4+ {[%clk 0:00:16]}  Kf6 {[%clk 0:00:05]} 49. gxh5 {[%clk 0:00:16]}  gxf4 {[%clk 0:00:05]} 50. gxf4 {[%clk 0:00:17]}  exf4 {[%clk 0:00:05]} 51. c6 {[%clk 0:00:15]}  Ke6 {[%clk 0:00:03]} 52. c7 {[%clk 0:00:14]}  Rc8 {[%clk 0:00:03]} 53. Ba5 {[%clk 0:00:15]}  Ba4 {[%clk 0:00:02]} 54. Kf3 {[%clk 0:00:13]}  Bd1+ {[%clk 0:00:01]} 55. Kxf4 {[%clk 0:00:13]}  Bxh5 {[%clk 0:00:01]} 56. Bb7 {[%clk 0:00:13]}  Rxc7 {[%clk 0:00:02]} 57. Bxc7 {[%clk 0:00:13]}  Bg6 {[%clk 0:00:02]} 58. Bxa6 {[%clk 0:00:12]}  Kd5 {[%clk 0:00:03]} 59. Be5 {[%clk 0:00:12]}  Kc6 {[%clk 0:00:02]} 60. Bg7 {[%clk 0:00:13]}  Kd5 {[%clk 0:00:02]} 61. Bc4+ {[%clk 0:00:13]}  Kc6 {[%clk 0:00:02]} 62. Ke5 {[%clk 0:00:13]}  Be8 {[%clk 0:00:02]} 63. Kxd4 {[%clk 0:00:13]}  Kc7 {[%clk 0:00:02]} 64. Be5+ {[%clk 0:00:13]}  Kc6 {[%clk 0:00:02]} 65. Kc3 {[%clk 0:00:14]}  Kb6 {[%clk 0:00:01]} 66. d4 {[%clk 0:00:15]}  Bc6 {[%clk 0:00:01]} 67. Kb4 {[%clk 0:00:16]}  Be8 {[%clk 0:00:01]} 68. a4 {[%clk 0:00:17]}  Bd7 {[%clk 0:00:01]} 69. a5+ {[%clk 0:00:18]}  Ka7 {[%clk 0:00:02]} 70. Kc5 {[%clk 0:00:18]}  Bc8 {[%clk 0:00:02]} 71. Bc7 {[%clk 0:00:18]}  Ka8 {[%clk 0:00:03]} 72. Bb6 {[%clk 0:00:19]}  Kb7 {[%clk 0:00:03]} 73. Bd5+ {[%clk 0:00:20]}  Ka6 {[%clk 0:00:03]} 74. Bc4+ {[%clk 0:00:20]}  Kb7 {[%clk 0:00:03]} 75. a6+ {[%clk 0:00:21]}  Kb8 {[%clk 0:00:04]} 76. a7+ {[%clk 0:00:21]}  Ka8 {[%clk 0:00:04]} 77. d5 {[%clk 0:00:22]}  Bb7 {[%clk 0:00:05]} 78. d6 {[%clk 0:00:23]}  Bc6 {[%clk 0:00:04]} 79. d7 {[%clk 0:00:23]}  Bxd7 {[%clk 0:00:05]} 80. Bd5+ {[%clk 0:00:24]}  Bc6 {[%clk 0:00:05]} 81. Bxc6# {[%clk 0:00:25]} 1-0

[Event "January 9 Late 2024"]
[Site "https://www.chess.com"]
[Date "2024.01.09"]
[Round "5"]
[White "Fareh, Youness"]
[Black "Melamed, Daniel"]
[Result "0-1"]
[Board "192"]
[TimeControl "180+1"]
[WhiteFideId "9000526"]
[BlackFideId "3229076"]
[WhiteElo "2043"]
[BlackElo "2334"]
[WhiteTeam "MAR"]
[BlackTeam "AUS"]
[WhiteClock "0:00:15"]
[BlackClock "0:00:35"]

1. Nf3 {[%clk 0:02:58]}  Nf6 {[%clk 0:02:56]} 2. c4 {[%clk 0:02:57]}  e6 {[%clk 0:02:54]} 3. Nc3 {[%clk 0:02:57]}  d5 {[%clk 0:02:55]} 4. cxd5 {[%clk 0:02:57]}  exd5 {[%clk 0:02:56]} 5. d4 {[%clk 0:02:58]}  c6 {[%clk 0:02:55]} 6. g3 {[%clk 0:02:57]}  Be7 {[%clk 0:02:55]} 7. Bg2 {[%clk 0:02:57]}  O-O {[%clk 0:02:55]} 8. O-O {[%clk 0:02:57]}  Bf5 {[%clk 0:02:55]} 9. Ne5 {[%clk 0:02:52]}  Nbd7 {[%clk 0:02:55]} 10. f4 {[%clk 0:02:52]}  Ne4 {[%clk 0:02:50]} 11. Nxe4 {[%clk 0:02:50]}  Bxe4 {[%clk 0:02:51]} 12. Bxe4 {[%clk 0:02:50]}  dxe4 {[%clk 0:02:52]} 13. Qc2 {[%clk 0:02:49]}  Nf6 {[%clk 0:02:43]} 14. e3 {[%clk 0:02:29]}  Rc8 {[%clk 0:02:41]} 15. Bd2 {[%clk 0:02:12]}  c5 {[%clk 0:02:40]} 16. Bc3 {[%clk 0:02:10]}  cxd4 {[%clk 0:02:38]} 17. exd4 {[%clk 0:02:10]}  Qd5 {[%clk 0:02:36]} 18. Qa4 {[%clk 0:02:01]}  b5 {[%clk 0:02:34]} 19. Qxa7 {[%clk 0:01:47]}  Rfe8 {[%clk 0:02:20]} 20. a3 {[%clk 0:01:38]}  Bd6 {[%clk 0:02:11]} 21. Rad1 {[%clk 0:01:32]}  Rc7 {[%clk 0:01:56]} 22. Qb6 {[%clk 0:01:17]}  h5 {[%clk 0:01:45]} 23. h4 {[%clk 0:01:16]}  Rec8 {[%clk 0:01:27]} 24. Rfe1 {[%clk 0:01:01]}  Rxc3 {[%clk 0:01:18]} 25. bxc3 {[%clk 0:01:00]}  Rxc3 {[%clk 0:01:19]} 26. Qd8+ {[%clk 0:00:59]}  Kh7 {[%clk 0:01:18]} 27. Nxf7 {[%clk 0:00:57]}  Rxg3+ {[%clk 0:01:05]} 28. Kh2 {[%clk 0:00:57]}  Bxf4 {[%clk 0:00:52]} 29. Qh8+ {[%clk 0:00:40]}  Kg6 {[%clk 0:00:52]} 30. Ne5+ {[%clk 0:00:38]}  Bxe5 {[%clk 0:00:35]} 31. dxe5 {[%clk 0:00:39]}  Qxe5 {[%clk 0:00:36]} 32. Rg1 {[%clk 0:00:19]}  Ng4+ {[%clk 0:00:35]} 33. Kh1 {[%clk 0:00:17]}  Rh3+ {[%clk 0:00:34]} 34. Kg2 {[%clk 0:00:17]}  Qh2+ {[%clk 0:00:34]} 35. Kf1 {[%clk 0:00:15]}  Qf2# {[%clk 0:00:35]} 0-1

[Event "January 9 Late 2024"]
[Site "https://www.chess.com"]
[Date "2024.01.09"]
[Round "5"]
[White "Antonio, Jorge Carlos"]
[Black "Thake, Conrad"]
[Result "1/2-1/2"]
[Board "195"]
[TimeControl "180+1"]
[WhiteFideId "113190"]
[BlackFideId "5602947"]
[WhiteElo "2313"]
[BlackElo "1847"]
[WhiteTeam "ARG"]
[BlackTeam "MLT"]
[WhiteClock "0:00:20"]
[BlackClock "0:00:14"]

1. d4 {[%clk 0:03:00]}  Nf6 {[%clk 0:02:51]} 2. Nf3 {[%clk 0:02:58]}  e6 {[%clk 0:02:47]} 3. Bf4 {[%clk 0:02:57]}  d5 {[%clk 0:02:40]} 4. e3 {[%clk 0:02:55]}  c5 {[%clk 0:02:40]} 5. c3 {[%clk 0:02:53]}  Qb6 {[%clk 0:02:39]} 6. Qb3 {[%clk 0:02:49]}  Nc6 {[%clk 0:02:38]} 7. Ne5 {[%clk 0:02:45]}  Bd7 {[%clk 0:02:35]} 8. Nxd7 {[%clk 0:02:42]}  Nxd7 {[%clk 0:02:29]} 9. Nd2 {[%clk 0:02:40]}  Be7 {[%clk 0:02:16]} 10. Be2 {[%clk 0:02:39]}  O-O {[%clk 0:02:15]} 11. O-O {[%clk 0:02:35]}  Nf6 {[%clk 0:02:05]} 12. Qc2 {[%clk 0:02:27]}  cxd4 {[%clk 0:02:01]} 13. exd4 {[%clk 0:02:24]}  Rac8 {[%clk 0:01:59]} 14. Qb3 {[%clk 0:02:20]}  Qxb3 {[%clk 0:01:42]} 15. axb3 {[%clk 0:02:17]}  a6 {[%clk 0:01:41]} 16. Bd3 {[%clk 0:02:07]}  h6 {[%clk 0:01:36]} 17. Rfe1 {[%clk 0:02:06]}  Rfd8 {[%clk 0:01:33]} 18. b4 {[%clk 0:02:04]}  Ra8 {[%clk 0:01:20]} 19. Nb3 {[%clk 0:02:04]}  Nd7 {[%clk 0:01:17]} 20. Nc5 {[%clk 0:02:02]}  Nxc5 {[%clk 0:01:17]} 21. bxc5 {[%clk 0:02:00]}  g5 {[%clk 0:00:49]} 22. Be3 {[%clk 0:01:50]}  Kg7 {[%clk 0:00:48]} 23. b4 {[%clk 0:01:49]}  Bf6 {[%clk 0:00:36]} 24. f4 {[%clk 0:01:43]}  Re8 {[%clk 0:00:20]} 25. fxg5 {[%clk 0:01:43]}  hxg5 {[%clk 0:00:19]} 26. Bf2 {[%clk 0:01:36]}  e5 {[%clk 0:00:20]} 27. dxe5 {[%clk 0:01:29]}  Nxe5 {[%clk 0:00:20]} 28. Bf5 {[%clk 0:01:21]}  Nc4 {[%clk 0:00:19]} 29. Rxe8 {[%clk 0:01:15]}  Rxe8 {[%clk 0:00:19]} 30. Rd1 {[%clk 0:01:14]}  Bxc3 {[%clk 0:00:17]} 31. Rxd5 {[%clk 0:00:52]}  Ne3 {[%clk 0:00:17]} 32. Bxe3 {[%clk 0:00:49]}  Rxe3 {[%clk 0:00:17]} 33. Kf2 {[%clk 0:00:45]}  Re5 {[%clk 0:00:17]} 34. Rxe5 {[%clk 0:00:34]}  Bxe5 {[%clk 0:00:17]} 35. Bd3 {[%clk 0:00:32]}  Bc3 {[%clk 0:00:17]} 36. b5 {[%clk 0:00:32]}  axb5 {[%clk 0:00:17]} 37. Bxb5 {[%clk 0:00:31]}  Bd4+ {[%clk 0:00:17]} 38. Kf3 {[%clk 0:00:31]}  Bxc5 {[%clk 0:00:17]} 39. g4 {[%clk 0:00:30]}  f6 {[%clk 0:00:16]} 40. Ke4 {[%clk 0:00:28]}  b6 {[%clk 0:00:16]} 41. Kf5 {[%clk 0:00:28]}  Bg1 {[%clk 0:00:15]} 42. h3 {[%clk 0:00:26]}  Bc5 {[%clk 0:00:15]} 43. Ke6 {[%clk 0:00:21]}  Bg1 {[%clk 0:00:15]} 44. Bc6 {[%clk 0:00:20]}  Bc5 {[%clk 0:00:15]} 45. Bb5 {[%clk 0:00:20]}  Bg1 {[%clk 0:00:14]} 46. Kf5 {[%clk 0:00:20]}  Bc5 {[%clk 0:00:14]} 47. Ke6 {[%clk 0:00:20]} 1/2-1/2

[Event "January 9 Late 2024"]
[Site "https://www.chess.com"]
[Date "2024.01.09"]
[Round "5"]
[White "Kappeler, Kaspar"]
[Black "Argandona Riveiro, Inigo"]
[Result "1-0"]
[Board "198"]
[TimeControl "180+1"]
[WhiteFideId "1309072"]
[BlackFideId "2212072"]
[WhiteElo "2255"]
[BlackElo "2390"]
[WhiteTeam "SUI"]
[BlackTeam "ESP"]
[WhiteClock "0:00:05"]
[BlackClock "0:00:00"]

1. d4 {[%clk 0:03:00]}  d6 {[%clk 0:03:00]} 2. Nf3 {[%clk 0:02:59]}  Nf6 {[%clk 0:02:58]} 3. c4 {[%clk 0:02:59]}  Nbd7 {[%clk 0:02:57]} 4. Nc3 {[%clk 0:02:59]}  e5 {[%clk 0:02:57]} 5. e4 {[%clk 0:03:00]}  Be7 {[%clk 0:02:57]} 6. Be2 {[%clk 0:03:00]}  O-O {[%clk 0:02:57]} 7. O-O {[%clk 0:03:01]}  exd4 {[%clk 0:02:57]} 8. Nxd4 {[%clk 0:03:00]}  Re8 {[%clk 0:02:58]} 9. f3 {[%clk 0:02:59]}  Bf8 {[%clk 0:02:58]} 10. Be3 {[%clk 0:02:47]}  c6 {[%clk 0:02:58]} 11. Qd2 {[%clk 0:02:47]}  a5 {[%clk 0:02:54]} 12. Rad1 {[%clk 0:02:39]}  g6 {[%clk 0:02:53]} 13. Kh1 {[%clk 0:02:31]}  Qe7 {[%clk 0:02:52]} 14. b3 {[%clk 0:02:25]}  d5 {[%clk 0:02:45]} 15. cxd5 {[%clk 0:02:22]}  cxd5 {[%clk 0:02:44]} 16. Ndb5 {[%clk 0:02:19]}  dxe4 {[%clk 0:02:39]} 17. Nc7 {[%clk 0:02:15]}  exf3 {[%clk 0:02:39]} 18. Rxf3 {[%clk 0:02:14]}  Ne5 {[%clk 0:02:17]} 19. Nxe8 {[%clk 0:02:05]}  Nxe8 {[%clk 0:02:02]} 20. Rff1 {[%clk 0:01:59]}  Bg4 {[%clk 0:01:55]} 21. Nd5 {[%clk 0:01:54]}  Qh4 {[%clk 0:01:44]} 22. Bg5 {[%clk 0:01:36]}  Qh5 {[%clk 0:01:40]} 23. Bb5 {[%clk 0:01:28]}  Bxd1 {[%clk 0:00:59]} 24. Bxe8 {[%clk 0:01:27]}  Ng4 {[%clk 0:01:00]} 25. Bxf7+ {[%clk 0:01:14]}  Kh8 {[%clk 0:00:59]} 26. h3 {[%clk 0:00:53]}  Bg7 {[%clk 0:01:00]} 27. Nf4 {[%clk 0:00:29]}  Qxg5 {[%clk 0:00:35]} 28. Nxg6+ {[%clk 0:00:29]}  Qxg6 {[%clk 0:00:32]} 29. Bxg6 {[%clk 0:00:28]}  hxg6 {[%clk 0:00:25]} 30. Qxd1 {[%clk 0:00:17]}  Ne3 {[%clk 0:00:22]} 31. Qe2 {[%clk 0:00:16]}  Nxf1 {[%clk 0:00:22]} 32. Qxf1 {[%clk 0:00:16]}  Rf8 {[%clk 0:00:22]} 33. Qe2 {[%clk 0:00:16]}  Bd4 {[%clk 0:00:17]} 34. g3 {[%clk 0:00:16]}  b6 {[%clk 0:00:17]} 35. Kg2 {[%clk 0:00:16]}  Bc5 {[%clk 0:00:14]} 36. Qd3 {[%clk 0:00:15]}  Rf2+ {[%clk 0:00:12]} 37. Kh1 {[%clk 0:00:14]}  Kg7 {[%clk 0:00:12]} 38. h4 {[%clk 0:00:14]}  Kh6 {[%clk 0:00:10]} 39. a4 {[%clk 0:00:14]}  Kg7 {[%clk 0:00:10]} 40. Qd7+ {[%clk 0:00:13]}  Kh6 {[%clk 0:00:09]} 41. Qd3 {[%clk 0:00:13]}  Kg7 {[%clk 0:00:09]} 42. g4 {[%clk 0:00:14]}  Kh6 {[%clk 0:00:08]} 43. h5 {[%clk 0:00:14]}  gxh5 {[%clk 0:00:07]} 44. gxh5 {[%clk 0:00:09]}  Kxh5 {[%clk 0:00:08]} 45. Qh3+ {[%clk 0:00:09]}  Kg5 {[%clk 0:00:08]} 46. Qg3+ {[%clk 0:00:10]}  Kf5 {[%clk 0:00:08]} 47. Qd3+ {[%clk 0:00:09]}  Kg4 {[%clk 0:00:07]} 48. Qc4+ {[%clk 0:00:10]}  Kf3 {[%clk 0:00:07]} 49. Qd3+ {[%clk 0:00:10]}  Kf4 {[%clk 0:00:06]} 50. Qc4+ {[%clk 0:00:10]}  Kf3 {[%clk 0:00:06]} 51. Qf7+ {[%clk 0:00:10]}  Ke2 {[%clk 0:00:05]} 52. Qe6+ {[%clk 0:00:10]}  Be3 {[%clk 0:00:05]} 53. Qc4+ {[%clk 0:00:09]}  Ke1 {[%clk 0:00:04]} 54. Qc3+ {[%clk 0:00:08]}  Ke2 {[%clk 0:00:05]} 55. Qc4+ {[%clk 0:00:08]}  Ke1 {[%clk 0:00:05]} 56. Qc3+ {[%clk 0:00:07]}  Ke2 {[%clk 0:00:05]} 57. Kg1 {[%clk 0:00:07]}  Rf1+ {[%clk 0:00:05]} 58. Kg2 {[%clk 0:00:07]}  Rf2+ {[%clk 0:00:05]} 59. Kg3 {[%clk 0:00:07]}  Rf3+ {[%clk 0:00:05]} 60. Kg4 {[%clk 0:00:07]}  Rf4+ {[%clk 0:00:05]} 61. Kh5 {[%clk 0:00:06]}  Rf5+ {[%clk 0:00:05]} 62. Kg6 {[%clk 0:00:05]}  Rg5+ {[%clk 0:00:05]} 63. Kf6 {[%clk 0:00:04]}  Rg3 {[%clk 0:00:05]} 64. Qc2+ {[%clk 0:00:04]}  Kf3 {[%clk 0:00:06]} 65. Kf5 {[%clk 0:00:03]}  Rg5+ {[%clk 0:00:05]} 66. Ke6 {[%clk 0:00:04]}  Rg3 {[%clk 0:00:04]} 67. Kd6 {[%clk 0:00:04]}  Bc5+ {[%clk 0:00:03]} 68. Kc6 {[%clk 0:00:04]}  Rg2 {[%clk 0:00:03]} 69. Qc4 {[%clk 0:00:04]}  Kg3 {[%clk 0:00:02]} 70. Qd5 {[%clk 0:00:04]}  Rf2 {[%clk 0:00:02]} 71. Qg5+ {[%clk 0:00:04]}  Kf3 {[%clk 0:00:01]} 72. Qf5+ {[%clk 0:00:05]}  Ke2 {[%clk 0:00:02]} 73. Qd5 {[%clk 0:00:05]}  Kf1 {[%clk 0:00:03]} 74. Qc4+ {[%clk 0:00:06]}  Kg2 {[%clk 0:00:02]} 75. Kb5 {[%clk 0:00:06]}  Kg3 {[%clk 0:00:03]} 76. Qd5 {[%clk 0:00:06]}  Kg4 {[%clk 0:00:03]} 77. Qe6+ {[%clk 0:00:06]}  Kg3 {[%clk 0:00:03]} 78. Qg6+ {[%clk 0:00:06]}  Kf3 {[%clk 0:00:04]} 79. Qd3+ {[%clk 0:00:06]}  Kg2 {[%clk 0:00:04]} 80. Qc4 {[%clk 0:00:06]}  Kg3 {[%clk 0:00:04]} 81. Qd5 {[%clk 0:00:06]}  Kf4 {[%clk 0:00:03]} 82. Qc6 {[%clk 0:00:06]}  Kg3 {[%clk 0:00:04]} 83. Qd7 {[%clk 0:00:06]}  Kf4 {[%clk 0:00:04]} 84. b4 {[%clk 0:00:05]}  axb4 {[%clk 0:00:03]} 85. a5 {[%clk 0:00:05]}  Be3 {[%clk 0:00:00]} 86. a6 {[%clk 0:00:05]} 1-0

[Event "January 9 Late 2024"]
[Site "https://www.chess.com"]
[Date "2024.01.09"]
[Round "5"]
[White "Garcia Correa, Jose Ricardo"]
[Black "Balla, Tamas-Kristof"]
[Result "0-1"]
[Board "200"]
[TimeControl "180+1"]
[WhiteFideId "5101832"]
[BlackFideId "1208497"]
[WhiteElo "2213"]
[BlackElo "2424"]
[WhiteTeam "MEX"]
[BlackTeam "ROU"]
[WhiteClock "0:00:52"]
[BlackClock "0:00:15"]

1. e3 {[%clk 0:02:58]}  c5 {[%clk 0:02:59]} 2. c4 {[%clk 0:02:58]}  Nf6 {[%clk 0:02:56]} 3. Nc3 {[%clk 0:02:59]}  Nc6 {[%clk 0:02:56]} 4. d4 {[%clk 0:02:57]}  cxd4 {[%clk 0:02:56]} 5. exd4 {[%clk 0:02:58]}  d5 {[%clk 0:02:57]} 6. c5 {[%clk 0:02:58]}  g6 {[%clk 0:02:48]} 7. Bf4 {[%clk 0:02:57]}  Bg4 {[%clk 0:02:41]} 8. f3 {[%clk 0:02:57]}  Be6 {[%clk 0:02:36]} 9. Qd2 {[%clk 0:02:51]}  Bg7 {[%clk 0:02:35]} 10. h4 {[%clk 0:02:51]}  h5 {[%clk 0:02:34]} 11. Nh3 {[%clk 0:02:50]}  Bxh3 {[%clk 0:02:20]} 12. Rxh3 {[%clk 0:02:48]}  Nd7 {[%clk 0:02:16]} 13. Nxd5 {[%clk 0:02:42]}  e5 {[%clk 0:02:07]} 14. dxe5 {[%clk 0:02:41]}  Ndxe5 {[%clk 0:02:00]} 15. O-O-O {[%clk 0:02:39]}  O-O {[%clk 0:01:59]} 16. Be2 {[%clk 0:02:23]}  Rc8 {[%clk 0:01:52]} 17. Kb1 {[%clk 0:02:22]}  Qe8 {[%clk 0:01:20]} 18. g4 {[%clk 0:02:15]}  hxg4 {[%clk 0:01:19]} 19. fxg4 {[%clk 0:02:15]}  Qe6 {[%clk 0:01:19]} 20. Re3 {[%clk 0:02:00]}  Rfd8 {[%clk 0:01:16]} 21. h5 {[%clk 0:02:00]}  gxh5 {[%clk 0:01:11]} 22. gxh5 {[%clk 0:01:59]}  Qf5+ {[%clk 0:01:10]} 23. Ka1 {[%clk 0:01:56]}  Rxd5 {[%clk 0:01:02]} 24. Qxd5 {[%clk 0:01:55]}  Qxf4 {[%clk 0:01:02]} 25. Re4 {[%clk 0:01:56]}  Qh2 {[%clk 0:00:57]} 26. h6 {[%clk 0:01:38]}  Qxh6 {[%clk 0:00:54]} 27. Rg4 {[%clk 0:01:33]}  Nxg4 {[%clk 0:00:50]} 28. Bxg4 {[%clk 0:01:31]}  Rd8 {[%clk 0:00:50]} 29. Qb3 {[%clk 0:01:30]}  Rxd1+ {[%clk 0:00:45]} 30. Qxd1 {[%clk 0:01:31]}  Qh2 {[%clk 0:00:43]} 31. Be2 {[%clk 0:01:22]}  Nd4 {[%clk 0:00:40]} 32. Bd3 {[%clk 0:01:17]}  Nf3 {[%clk 0:00:30]} 33. Bc2 {[%clk 0:01:08]}  Nd4 {[%clk 0:00:19]} 34. Bb1 {[%clk 0:01:04]}  Qe5 {[%clk 0:00:19]} 35. Qd3 {[%clk 0:01:00]}  Qxc5 {[%clk 0:00:17]} 36. a3 {[%clk 0:00:59]}  Qd5 {[%clk 0:00:17]} 37. Ba2 {[%clk 0:00:57]}  Qh1+ {[%clk 0:00:16]} 38. Bb1 {[%clk 0:00:56]}  Qh2 {[%clk 0:00:16]} 39. Qc4 {[%clk 0:00:53]}  Nc6 {[%clk 0:00:15]} 40. Ba2 {[%clk 0:00:52]}  Qxb2# {[%clk 0:00:15]} 0-1

[Event "January 9 Late 2024"]
[Site "https://www.chess.com"]
[Date "2024.01.09"]
[Round "5"]
[White "Korkmaz, Necmettin"]
[Black "Piscicelli, Daniel Orlando"]
[Result "1-0"]
[Board "201"]
[TimeControl "180+1"]
[WhiteFideId "6303285"]
[BlackFideId "101958"]
[WhiteElo "2414"]
[BlackElo "2175"]
[WhiteTeam "TUR"]
[BlackTeam "ARG"]
[WhiteClock "0:01:54"]
[BlackClock "0:01:57"]

1. e4 {[%clk 0:03:00]}  e5 {[%clk 0:02:59]} 2. Nf3 {[%clk 0:02:59]}  Nc6 {[%clk 0:02:58]} 3. Nc3 {[%clk 0:02:55]}  Nf6 {[%clk 0:02:57]} 4. d4 {[%clk 0:02:55]}  exd4 {[%clk 0:02:56]} 5. Nxd4 {[%clk 0:02:56]}  Bb4 {[%clk 0:02:55]} 6. Nxc6 {[%clk 0:02:55]}  bxc6 {[%clk 0:02:54]} 7. Bd3 {[%clk 0:02:55]}  O-O {[%clk 0:02:50]} 8. O-O {[%clk 0:02:54]}  Re8 {[%clk 0:02:50]} 9. Bg5 {[%clk 0:02:46]}  Be7 {[%clk 0:02:49]} 10. e5 {[%clk 0:02:42]}  Nd5 {[%clk 0:02:49]} 11. Bd2 {[%clk 0:02:19]}  Rb8 {[%clk 0:02:41]} 12. Qh5 {[%clk 0:02:06]}  h6 {[%clk 0:02:35]} 13. Bxh6 {[%clk 0:02:03]}  g6 {[%clk 0:02:17]} 14. Bxg6 {[%clk 0:02:01]}  Nf4 {[%clk 0:02:00]} 15. Bxf7+ {[%clk 0:01:57]}  Kh8 {[%clk 0:01:58]} 16. Bxf4+ {[%clk 0:01:56]}  Kg7 {[%clk 0:01:58]} 17. Qg6+ {[%clk 0:01:56]}  Kh8 {[%clk 0:01:57]} 18. Qh6# {[%clk 0:01:54]} 1-0

[Event "January 9 Late 2024"]
[Site "https://www.chess.com"]
[Date "2024.01.09"]
[Round "5"]
[White "Guzman Lozano, Campo Elias"]
[Black "Bueno, Alfeu Junior Varela"]
[Result "0-1"]
[Board "202"]
[TimeControl "180+1"]
[WhiteFideId "4403746"]
[BlackFideId "2108879"]
[WhiteElo "2164"]
[BlackElo "2385"]
[WhiteTeam "COL"]
[BlackTeam "BRA"]
[WhiteClock "0:01:28"]
[BlackClock "0:02:16"]

1. Nf3 {[%clk 0:03:00]}  e6 {[%clk 0:02:53]} 2. b3 {[%clk 0:02:59]}  f5 {[%clk 0:02:53]} 3. Bb2 {[%clk 0:02:59]}  b6 {[%clk 0:02:54]} 4. g3 {[%clk 0:02:57]}  Bb7 {[%clk 0:02:55]} 5. Bg2 {[%clk 0:02:57]}  Nf6 {[%clk 0:02:55]} 6. d3 {[%clk 0:02:57]}  Be7 {[%clk 0:02:56]} 7. O-O {[%clk 0:02:55]}  O-O {[%clk 0:02:57]} 8. c4 {[%clk 0:02:54]}  Qe8 {[%clk 0:02:57]} 9. Nbd2 {[%clk 0:02:54]}  Qh5 {[%clk 0:02:58]} 10. Bxf6 {[%clk 0:02:44]}  Bxf6 {[%clk 0:02:58]} 11. Rb1 {[%clk 0:02:44]}  e5 {[%clk 0:02:50]} 12. e4 {[%clk 0:02:31]}  d6 {[%clk 0:02:49]} 13. exf5 {[%clk 0:02:20]}  Nd7 {[%clk 0:02:46]} 14. Ne4 {[%clk 0:02:20]}  Qxf5 {[%clk 0:02:41]} 15. Nxf6+ {[%clk 0:02:16]}  Qxf6 {[%clk 0:02:42]} 16. Nd2 {[%clk 0:02:11]}  Bxg2 {[%clk 0:02:39]} 17. Kxg2 {[%clk 0:02:11]}  Qg6 {[%clk 0:02:39]} 18. Ne4 {[%clk 0:02:06]}  Rf5 {[%clk 0:02:33]} 19. Rb2 {[%clk 0:02:02]}  Raf8 {[%clk 0:02:32]} 20. Qe1 {[%clk 0:02:00]}  Qh5 {[%clk 0:02:20]} 21. Qe2 {[%clk 0:01:56]}  Rf3 {[%clk 0:02:19]} 22. Nd2 {[%clk 0:01:50]}  Rxg3+ {[%clk 0:02:17]} 23. fxg3 {[%clk 0:01:28]}  Qxe2+ {[%clk 0:02:16]} 0-1

[Event "January 9 Late 2024"]
[Site "https://www.chess.com"]
[Date "2024.01.09"]
[Round "5"]
[White "Sanchez Alvares, Kelvin Antonio"]
[Black "Feliz Dotel, Dewar Bienvenido"]
[Result "1-0"]
[Board "203"]
[TimeControl "180+1"]
[WhiteFideId "3906680"]
[BlackFideId "6402801"]
[WhiteElo "2341"]
[BlackElo "2155"]
[WhiteTeam "VEN"]
[BlackTeam "DOM"]
[WhiteClock "0:00:06"]
[BlackClock "0:00:00"]

1. e4 {[%clk 0:03:00]}  c5 {[%clk 0:02:57]} 2. Nf3 {[%clk 0:02:59]}  g6 {[%clk 0:02:57]} 3. d4 {[%clk 0:02:58]}  cxd4 {[%clk 0:02:57]} 4. Nxd4 {[%clk 0:02:57]}  Nc6 {[%clk 0:02:57]} 5. c4 {[%clk 0:02:57]}  Nf6 {[%clk 0:02:56]} 6. Nc3 {[%clk 0:02:55]}  d6 {[%clk 0:02:55]} 7. Be3 {[%clk 0:02:49]}  Ng4 {[%clk 0:02:55]} 8. Bc1 {[%clk 0:02:35]}  Bg7 {[%clk 0:02:50]} 9. Nc2 {[%clk 0:02:28]}  Qb6 {[%clk 0:02:32]} 10. Qf3 {[%clk 0:02:13]}  Nd4 {[%clk 0:01:50]} 11. Nxd4 {[%clk 0:02:06]}  Bxd4 {[%clk 0:01:50]} 12. Nd1 {[%clk 0:01:03]}  Ne5 {[%clk 0:01:27]} 13. Qb3 {[%clk 0:00:56]}  Be6 {[%clk 0:00:51]} 14. Be3 {[%clk 0:00:41]}  Qa5+ {[%clk 0:00:31]} 15. Bd2 {[%clk 0:00:41]}  Qc5 {[%clk 0:00:22]} 16. Be2 {[%clk 0:00:39]}  Bxc4 {[%clk 0:00:13]} 17. Bxc4 {[%clk 0:00:27]}  Qxc4 {[%clk 0:00:14]} 18. Qxc4 {[%clk 0:00:19]}  Nxc4 {[%clk 0:00:15]} 19. Bc3 {[%clk 0:00:18]}  Bxc3+ {[%clk 0:00:14]} 20. Nxc3 {[%clk 0:00:18]}  Rc8 {[%clk 0:00:14]} 21. O-O {[%clk 0:00:17]}  Nxb2 {[%clk 0:00:12]} 22. Nd5 {[%clk 0:00:17]}  Rc5 {[%clk 0:00:10]} 23. Rab1 {[%clk 0:00:17]}  Nd3 {[%clk 0:00:08]} 24. Rxb7 {[%clk 0:00:16]}  O-O {[%clk 0:00:07]} 25. Rxe7 {[%clk 0:00:16]}  Ra5 {[%clk 0:00:05]} 26. h3 {[%clk 0:00:15]}  Rxa2 {[%clk 0:00:05]} 27. Rd7 {[%clk 0:00:13]}  Kg7 {[%clk 0:00:04]} 28. Rxd6 {[%clk 0:00:14]}  Rb8 {[%clk 0:00:04]} 29. Rd7 {[%clk 0:00:14]}  Rbb2 {[%clk 0:00:03]} 30. Nc3 {[%clk 0:00:06]}  Rd2 {[%clk 0:00:00]} 31. Nxa2 {[%clk 0:00:06]} 1-0